bitfinex/quotes_SOLUSD_20251206
["timestamp","ask_amount","ask_price","bid_price","bid_amount"]
[1765009945595,7.55229967,132.41,132.4,1e-08]
[1765009946110,7.55189435,132.42,132.4,0.69000001]
[1765009946287,8.3,132.41,132.4,0.69000001]
[1765009947183,11.94441188,132.41,132.4,1e-08]
[1765009947384,25.11880892,132.37,132.36,1e-08]
[1765009947590,16.308864,132.33,132.22,7.56269372]
[1765009947796,3.06441188,132.28,132.23,3.75441188]
[1765009947999,3.06441188,132.27,132.23,8.25212238]
[1765009948198,8.34,132.3,132.25,3.06441188]
[1765009948417,25.76846455,132.32,132.27,3.06441188]
[1765009948584,8.34,132.32,132.29,3.06441188]
[1765009948909,15.89642754,132.34,132.3,3.75441188]
[1765009949295,18.96083942,132.34,132.31,0.69]
[1765009951803,15.89642754,132.34,132.31,3.75441188]
[1765009952003,15.89642754,132.34,132.31,0.69]
[1765009952209,15.89642754,132.34,132.31,3.75441188]
[1765009952398,15.89642754,132.34,132.32,0.69]
[1765009954017,8.34,132.34,132.32,0.69]
[1765009954219,8.34,132.34,132.32,3.75441188]
[1765009954613,8.34,132.34,132.33,0.69]
[1765009955295,35.26895933,132.36,132.33,0.69]
[1765009956309,10.61892516,132.38,132.34,3.06441188]
[1765009956696,15.11241089,132.38,132.35,0.69]
[1765009956898,7.55451328,132.38,132.35,3.75441188]
[1765009957107,7.55451328,132.38,132.35,0.69]
[1765009957308,7.55451328,132.38,132.36,0.69]
[1765009958094,10.61892516,132.38,132.36,0.69]
[1765009958501,30.08145713,132.38,132.36,0.69]
[1765009958812,3.64441188,132.37,132.33,0.72]
[1765009959116,3.06441188,132.35,132.32,0.72]
[1765009959417,3.06441188,132.36,132.32,3.78441188]
[1765009959715,3.64441188,132.36,132.32,3.78441188]
[1765009959917,3.06441188,132.36,132.33,0.72]
[1765009961319,7.55572346,132.35,132.33,0.72]
[1765009964517,12.35354114,132.36,132.33,0.72]
[1765009967709,7.55515261,132.36,132.33,0.72]
[1765009967911,12.35354114,132.36,132.33,0.72]
[1765009969117,8.13515261,132.36,132.33,0.72]
[1765009969307,12.35354114,132.36,132.33,0.72]
[1765009969828,35.04728901,132.36,132.33,0.72]
[1765009970625,35.62728901,132.36,132.33,0.72]
[1765009970927,35.04728901,132.36,132.33,0.72]
[1765009971325,13.71838853,132.35,132.32,61.62000001]
[1765009971498,4.79838853,132.34,132.31,0.72]
[1765009971704,28.07728763,132.34,132.29,67.13838854]
[1765009972032,5.37838853,132.34,132.3,0.72]
[1765009972534,7.55743651,132.32,132.3,0.72]
[1765009976921,0.58,132.38,132.31,4.79838853]
[1765009977123,35.04500169,132.37,132.33,4.79838853]
[1765009977331,4.79838853,132.36,132.32,5.46838853]
[1765009977848,4.79838853,132.36,132.33,0.67]
[1765009978331,7.55572346,132.35,132.32,5.46838853]
[1765009978530,12.93411199,132.35,132.32,62.29000001]
[1765009978950,12.93411199,132.35,132.32,61.62000001]
[1765009979442,12.93411199,132.35,132.32,62.29000001]
[1765009979622,12.35507391,132.34,132.3,61.62000001]
[1765009979828,4.79838853,132.33,132.31,0.67]
[1765009980028,20.69507391,132.34,132.31,0.67]
[1765009981256,21.27507391,132.34,132.3,62.29000001]
[1765009981566,21.27507391,132.34,132.3,67.08838854]
[1765009981854,21.27507391,132.34,132.31,0.67]
[1765009982633,62.86470899,132.34,132.31,0.67]
[1765009982958,5.37838853,132.33,132.3,61.62000001]
[1765009984266,7.55743651,132.32,132.3,61.62000001]
[1765009984770,8.13743651,132.32,132.3,61.62000001]
[1765009985071,7.55743651,132.32,132.31,0.67]
[1765009986154,12.35582504,132.32,132.31,0.67]
[1765009986970,12.35525394,132.33,132.31,0.67]
[1765009987642,13.13838853,132.32,132.3,61.62000001]
[1765009987850,13.13838853,132.32,132.3,62.29000001]
[1765009988373,13.13838853,132.32,132.31,0.67]
[1765009988678,8.34,132.32,132.31,0.67]
[1765009988877,15.89743651,132.32,132.31,0.67]
[1765009989083,8.34,132.32,132.31,0.67]
[1765009989367,35.83728763,132.34,132.31,0.67]
[1765009989664,13.13838853,132.34,132.31,0.67]
[1765009990163,7.55698629,132.33,132.31,0.67]
[1765009992441,12.35537482,132.33,132.31,0.67]
[1765009993163,7.55698629,132.33,132.31,0.67]
[1765009993669,12.35537482,132.33,132.31,0.67]
[1765009994151,12.35537482,132.33,132.3,61.62000001]
[1765009994152,5.37838853,132.32,132.3,61.62000001]
[1765009994346,4.79838853,132.32,132.3,61.62000001]
[1765009994567,13.13838853,132.32,132.3,62.29000001]
[1765009995262,13.13838853,132.32,132.3,0.67]
[1765009996138,7.5580077,132.31,132.3,0.67]
[1765009996342,12.35639623,132.31,132.29,0.67]
[1765009996656,7.5580077,132.31,132.29,0.67]
[1765009996859,12.35639623,132.31,132.29,0.67]
[1765010001683,15.89744806,132.32,132.29,5.46838853]
[1765010001976,15.89744806,132.32,132.3,0.67]
[1765010004448,4.79838853,132.31,132.28,0.67]
[1765010004649,13.13838853,132.3,132.28,0.67]
[1765010005473,12.35753888,132.29,132.28,0.67]
[1765010005653,12.35753888,132.29,132.24,7.56185625]
[1765010005654,7.55915035,132.29,132.25,4.79838853]
[1765010005855,7.55915035,132.29,132.28,0.67]
[1765010006874,12.35753888,132.29,132.27,0.67]
[1765010008387,12.35811033,132.28,132.27,0.67]
[1765010008682,12.35811033,132.28,132.26,0.67]
[1765010009965,7.5597218,132.28,132.26,0.67]
[1765010010693,12.35753888,132.29,132.26,0.67]
[1765010010888,12.35753888,132.29,132.26,62.29000001]
[1765010011195,8.34,132.3,132.26,62.29000001]
[1765010011483,20.69707279,132.3,132.27,0.67]
[1765010012386,15.89868426,132.3,132.27,0.67]
[1765010013073,20.69707279,132.3,132.27,0.67]
[1765010013553,39.59352025,132.3,132.27,0.67]
[1765010016169,7.5597218,132.28,132.27,0.67]
[1765010016762,7.5597218,132.28,132.27,62.29000001]
[1765010017061,7.55915035,132.29,132.27,62.29000001]
[1765010017262,7.55915035,132.29,132.28,0.67]
[1765010023290,12.35753888,132.29,132.27,62.34000001]
[1765010023581,7.55915035,132.29,132.28,0.72]
[1765010032498,7.55915035,132.29,132.27,61.62000001]
[1765010032679,10.63309591,132.29,132.28,0.72]
[1765010032879,7.55915035,132.29,132.28,0.72]
[1765010033074,10.63309591,132.29,132.27,62.34000001]
[1765010033280,10.63309591,132.29,132.28,0.72]
[1765010035087,7.55915035,132.29,132.28,0.72]
[1765010036279,10.63309591,132.29,132.28,0.72]
[1765010036506,7.55915035,132.29,132.28,0.72]
[1765010041087,7.5580077,132.31,132.28,0.72]
[1765010043099,7.5580077,132.31,132.28,65.41394557]
[1765010043410,7.5580077,132.31,132.29,0.7]
[1765010045891,7.5580077,132.31,132.29,3.77394556]
[1765010046398,7.5580077,132.31,132.3,0.7]
[1765010046912,7.55743651,132.32,132.3,0.7]
[1765010047114,7.55743651,132.32,132.3,62.32000001]
[1765010047809,3.07394556,132.31,132.28,0.7]
[1765010048111,35.3510278,132.32,132.28,0.7]
[1765010048310,3.07394556,132.3,132.29,0.7]
[1765010048550,3.07394556,132.3,132.28,0.7]
[1765010048690,3.07394556,132.29,132.28,0.7]
[1765010049114,10.63309591,132.29,132.28,0.7]
[1765010049700,7.55915035,132.29,132.28,0.7]
[1765010055217,7.55915035,132.29,132.27,62.32000001]
[1765010055517,7.55915035,132.29,132.28,0.7]
[1765010056424,18.89754984,132.3,132.28,0.7]
[1765010056598,21.9714954,132.3,132.28,0.7]
[1765010058015,29.53007438,132.3,132.28,0.7]
[1765010058215,29.53007438,132.3,132.28,62.32000001]
[1765010058723,29.53007438,132.3,132.29,0.7]
[1765010060822,29.53007438,132.3,132.25,0.7]
[1765010061010,3.07394556,132.27,132.25,0.7]
[1765010061208,11.39394556,132.27,132.25,0.7]
[1765010061410,11.39394556,132.27,132.23,16.308864]
[1765010061411,11.39394556,132.27,132.24,0.7]
[1765010062401,3.07394556,132.26,132.24,0.7]
[1765010063724,7.56143667,132.25,132.24,0.7]
[1765010064915,7.56086496,132.26,132.24,0.7]
[1765010067338,7.56086496,132.26,132.24,13.48949364]
[1765010068040,7.56086496,132.26,132.25,0.7]
[1765010070433,27.22198003,132.27,132.25,12.58389048]
[1765010070434,7.56046744,132.27,132.25,12.58389048]
[1765010070932,7.56046744,132.27,132.26,0.7]
[1765010071313,7.5597218,132.28,132.26,0.7]
[1765010072518,7.5597218,132.28,132.26,3.77394556]
[1765010072916,7.5597218,132.28,132.27,0.7]
[1765010076025,7.5597218,132.28,132.27,13.48949364]
[1765010078036,7.5597218,132.28,132.27,0.7]
[1765010083618,7.55922704,132.29,132.27,9.50994492]
[1765010084031,7.55922704,132.29,132.28,9.50994492]
[1765010084238,7.55922704,132.29,132.28,22.29943856]
[1765010085127,7.55857898,132.3,132.28,22.29943856]
[1765010085329,7.55857898,132.3,132.29,0.7]
[1765010087843,15.87805944,132.31,132.29,0.7]
[1765010088045,13.12153944,132.33,132.3,8.80994492]
[1765010088352,8.32,132.33,132.3,8.80994492]
[1765010088645,7.55761225,132.32,132.31,9.50994492]
[1765010088832,7.55761225,132.32,132.31,8.80994492]
[1765010089448,7.55702788,132.33,132.31,9.50994492]
[1765010089621,7.55702788,132.33,132.32,0.7]
[1765010090028,7.55640365,132.34,132.33,8.80994492]
[1765010090426,7.55640365,132.34,132.33,9.51994492]
[1765010093933,7.55640365,132.34,132.33,22.30943856]
[1765010095051,7.55640365,132.34,132.33,12.78949364]
[1765010095357,7.55640365,132.34,132.33,13.49949364]
[1765010096558,7.55640365,132.34,132.33,22.30943856]
[1765010097055,26.44359262,132.36,132.33,22.30943856]
[1765010097350,26.44359262,132.36,132.34,0.71]
[1765010099258,7.55515261,132.36,132.35,8.80994492]
[1765010099753,7.55475997,132.37,132.35,14.32148436]
[1765010099956,7.55475997,132.37,132.36,9.51994492]
[1765010101268,7.55401117,132.38,132.36,9.51994492]
[1765010101556,7.55401117,132.38,132.37,0.71]
[1765010104481,31.24057855,132.38,132.34,21.10949364]
[1765010104760,4.80153944,132.35,132.34,12.78949364]
[1765010104941,4.80153944,132.35,132.3,0.71]
[1765010104942,13.12153944,132.35,132.3,0.71]
[1765010105141,4.80153944,132.33,132.31,0.71]
[1765010105365,13.12153944,132.33,132.31,0.71]
[1765010106137,7.55743651,132.32,132.31,0.71]
[1765010106755,12.93897595,132.32,132.29,0.71]
[1765010107043,4.80153944,132.31,132.29,0.71]
[1765010107261,26.4510278,132.32,132.29,0.71]
[1765010107454,4.80153944,132.31,132.29,0.71]
[1765010108151,13.12153944,132.31,132.28,25.82880892]
[1765010108350,7.55857898,132.3,132.28,25.82880892]
[1765010108761,7.55857898,132.3,132.29,0.69]
[1765010108961,7.55809182,132.31,132.29,0.69]
[1765010110755,12.35963126,132.31,132.29,0.69]
[1765010111870,4.80153944,132.3,132.28,16.998864]
[1765010112265,4.80153944,132.3,132.28,0.69]
[1765010112776,7.55915035,132.29,132.28,0.69]
[1765010114372,7.55915035,132.29,132.27,0.69]
[1765010115046,12.36068979,132.29,132.27,0.69]
[1765010115264,12.36068979,132.29,132.25,16.308864]
[1765010115265,5.38153944,132.28,132.25,16.308864]
[1765010115674,4.80153944,132.28,132.25,16.998864]
[1765010115970,4.80153944,132.28,132.26,0.69]
[1765010116147,31.83856566,132.29,132.26,0.69]
[1765010118273,7.56029333,132.27,132.26,0.69]
[1765010118668,7.56029333,132.27,132.25,0.69]
[1765010118876,7.56029333,132.27,132.26,0.69]
[1765010119970,15.87981638,132.28,132.26,9.49994492]
[1765010120166,7.55981638,132.28,132.27,0.69]
[1765010120668,7.55981638,132.28,132.27,63.39]
[1765010121252,7.55981638,132.28,132.27,62.7]
[1765010121449,21.26135582,132.28,132.24,19.40604774]
[1765010121661,4.80153944,132.25,132.2,0.69]
[1765010121858,4.80153944,132.24,132.2,0.69]
[1765010122056,4.80153944,132.24,132.21,8.80994492]
[1765010122469,4.80153944,132.24,132.21,9.49994492]
[1765010122854,7.56258035,132.23,132.22,0.69]
[1765010124977,12.3635479,132.24,132.22,0.69]
[1765010126473,12.3635479,132.24,132.22,56.09]
[1765010128068,4.80153944,132.23,132.2,16.998864]
[1765010128268,4.80153944,132.23,132.2,16.308864]
[1765010128464,4.80153944,132.23,132.2,16.998864]
[1765010128660,5.38153944,132.23,132.2,16.998864]
[1765010128867,4.80153944,132.23,132.2,16.998864]
[1765010129267,4.80153944,132.22,132.19,9.00994492]
[1765010129579,4.80153944,132.22,132.2,0.69]
[1765010130079,7.56372437,132.21,132.2,0.69]
[1765010130661,13.12153944,132.24,132.21,8.80994492]
[1765010131064,13.12153944,132.24,132.22,0.69]
[1765010132176,7.56258035,132.23,132.22,0.69]
[1765010135479,7.56258035,132.23,132.22,56.09]
[1765010137882,7.56258035,132.23,132.22,55.4]
[1765010138284,7.56258035,132.23,132.22,56.09]
[1765010143194,7.56258035,132.23,132.22,64.89994492]
[1765010143693,18.90116338,132.27,132.23,8.80994492]
[1765010143879,27.22116338,132.27,132.24,0.69]
[1765010144288,7.56086496,132.26,132.24,0.69]
[1765010147397,7.56086496,132.26,132.24,5.49153944]
[1765010148488,7.56086496,132.26,132.24,3.76456981]
[1765010148894,7.56086496,132.26,132.25,0.69]
[1765010150905,18.89832059,132.29,132.26,8.80994492]
[1765010151103,8.32,132.29,132.26,11.88451473]
[1765010151284,8.32,132.29,132.27,0.67]
[1765010151679,8.32,132.29,132.26,11.88451473]
[1765010151989,8.32,132.29,132.26,12.55451473]
[1765010152603,8.9,132.29,132.26,12.55451473]
[1765010152908,15.8794646,132.29,132.26,12.55451473]
[1765010153285,15.8794646,132.29,132.26,11.88451473]
[1765010153486,15.8794646,132.29,132.26,12.55451473]
[1765010154908,15.8794646,132.29,132.26,9.47994492]
[1765010155104,15.8794646,132.29,132.26,12.55451473]
[1765010155303,15.8794646,132.29,132.27,0.67]
[1765010155499,15.8794646,132.29,132.26,12.55451473]
[1765010156008,15.8794646,132.29,132.27,0.67]
[1765010156210,15.8794646,132.29,132.27,59.14456981]
[1765010156508,15.8794646,132.29,132.28,0.67]
[1765010162114,15.8794646,132.29,132.28,56.07]
[1765010162627,7.55853388,132.31,132.29,8.80994492]
[1765010162814,7.55853388,132.31,132.29,67.95451473]
[1765010163007,7.55853388,132.31,132.3,0.67]
[1765010164713,7.55853388,132.31,132.29,64.20994492]
[1765010165026,7.55853388,132.31,132.3,0.67]
[1765010167410,15.87759354,132.32,132.3,3.74456981]
[1765010167618,15.87759354,132.32,132.3,12.55451473]
[1765010167934,15.87759354,132.32,132.31,0.67]
[1765010168430,15.87759354,132.32,132.3,9.47994492]
[1765010168836,15.87759354,132.32,132.31,0.7]
[1765010170721,15.87759354,132.32,132.3,9.50994492]
[1765010171436,38.42575464,132.32,132.29,56.1]
[1765010171643,37.84575464,132.32,132.3,0.7]
[1765010172122,34.77118483,132.32,132.3,0.7]
[1765010173735,3.65456981,132.31,132.27,20.08343381]
[1765010173948,3.65456981,132.31,132.28,0.7]
[1765010174126,0.58,132.31,132.28,0.7]
[1765010174432,3.07456981,132.31,132.28,0.7]
[1765010174618,37.84575464,132.32,132.28,0.7]
[1765010174815,37.84575464,132.32,132.28,3.77456981]
[1765010175136,37.84575464,132.32,132.29,0.7]
[1765010176212,38.42575464,132.32,132.29,0.7]
[1765010177230,7.55915035,132.29,132.27,17.008864]
[1765010177528,7.55915035,132.29,132.27,0.7]
[1765010177933,10.63372016,132.29,132.27,0.7]
[1765010180023,7.55915035,132.29,132.27,0.7]
[1765010180525,30.11159603,132.29,132.26,8.80994492]
[1765010180735,30.11159603,132.29,132.26,64.90994492]
[1765010180937,27.03702622,132.29,132.26,64.90994492]
[1765010181152,29.53159603,132.29,132.27,0.7]
[1765010186134,29.53159603,132.29,132.27,56.1]
[1765010186418,7.55870251,132.3,132.28,9.50994492]
[1765010186626,15.87870251,132.3,132.28,9.50994492]
[1765010186820,15.87870251,132.3,132.29,0.7]
[1765010187020,15.87870251,132.3,132.29,55.4]
[1765010187219,38.42971978,132.3,132.27,0.7]
[1765010187441,3.07456981,132.29,132.27,0.7]
[1765010187632,3.65456981,132.29,132.26,56.1]
[1765010187836,11.97456981,132.28,132.25,56.1]
[1765010188040,7.56029333,132.27,132.25,56.1]
[1765010189424,7.56029333,132.27,132.26,0.7]
[1765010190017,7.56029333,132.27,132.25,55.4]
[1765010190220,7.56029333,132.27,132.26,0.7]
[1765010193526,7.56029333,132.27,132.25,8.80994492]
[1765010193726,7.56029333,132.27,132.25,9.50994492]
[1765010193937,7.56029333,132.27,132.26,0.7]
[1765010197760,7.56029333,132.27,132.26,56.1]
[1765010201260,7.56029333,132.27,132.26,55.4]
[1765010203069,10.63486314,132.27,132.26,55.4]
[1765010203948,7.56029333,132.27,132.26,55.4]
[1765010204152,10.63486314,132.27,132.26,55.4]
[1765010206176,7.56029333,132.27,132.26,55.4]
[1765010206360,10.63486314,132.27,132.26,55.4]
[1765010206667,30.11559648,132.27,132.24,56.1]
[1765010207042,3.07456981,132.26,132.24,56.1]
[1765010208066,10.63594574,132.26,132.24,56.1]
[1765010208369,12.36645649,132.26,132.24,56.1]
[1765010208763,20.68645649,132.26,132.24,56.1]
[1765010210472,15.88137593,132.26,132.24,56.1]
[1765010213694,7.56042429,132.27,132.25,9.46994492]
[1765010213973,15.88042429,132.27,132.25,9.46994492]
[1765010214185,15.88042429,132.27,132.26,0.66]
[1765010217569,8.32,132.27,132.26,0.66]
[1765010217879,8.32,132.27,132.26,64.86994492]
[1765010218057,7.5597796,132.28,132.26,56.06]
[1765010218259,7.5597796,132.28,132.27,0.66]
[1765010218451,7.5597796,132.28,132.27,56.06]
[1765010219071,15.87923701,132.29,132.27,0.66]
[1765010219267,7.55876963,132.3,132.28,0.66]
[1765010220280,7.55756331,132.32,132.29,8.80994492]
[1765010220487,54.59345114,132.33,132.29,13.61502548]
[1765010220646,54.59345114,132.33,132.3,0.66]
[1765010221371,54.09345114,132.33,132.3,0.66]
[1765010224168,49.28837058,132.33,132.3,0.66]
[1765010224478,15.87694379,132.33,132.3,0.66]
[1765010226489,8.32,132.33,132.31,8.80994492]
[1765010226671,20.68155616,132.34,132.32,0.66]
[1765010227294,7.5564756,132.34,132.32,0.66]
[1765010227472,15.8764756,132.34,132.32,0.66]
[1765010227671,8.32,132.34,132.32,60.86508056]
[1765010227979,7.5558996,132.35,132.33,0.66]
[1765010228675,15.8758996,132.35,132.33,0.66]
[1765010229592,16.4558996,132.35,132.32,56.08]
[1765010229802,21.26098016,132.35,132.32,56.08]
[1765010231692,20.68098016,132.35,132.33,0.68]
[1765010233967,15.8758996,132.35,132.33,0.68]
[1765010234387,7.5558996,132.35,132.33,0.68]
[1765010235305,15.87532535,132.36,132.33,0.68]
[1765010235868,20.68040591,132.36,132.33,0.68]
[1765010236100,7.55532535,132.36,132.33,5.48508056]
[1765010236402,15.87532535,132.36,132.33,5.48508056]
[1765010236575,20.68040591,132.36,132.34,0.68]
[1765010239794,21.26040591,132.36,132.33,9.48994492]
[1765010239995,20.68040591,132.36,132.33,9.48994492]
[1765010240196,20.68040591,132.36,132.33,8.80994492]
[1765010240398,20.68040591,132.36,132.34,0.68]
[1765010242709,12.36040591,132.36,132.34,0.68]
[1765010242904,20.68040591,132.36,132.34,0.68]
[1765010243607,15.87476347,132.37,132.34,0.68]
[1765010243775,15.87476347,132.37,132.34,56.08]
[1765010244181,15.87476347,132.37,132.35,0.68]
[1765010245890,7.55476347,132.37,132.35,0.68]
[1765010246119,15.87476347,132.37,132.35,0.68]
[1765010248484,7.55476347,132.37,132.35,0.68]
[1765010248805,15.87476347,132.37,132.35,0.68]
[1765010249598,7.55476347,132.37,132.35,0.68]
[1765010249799,15.87476347,132.37,132.35,0.68]
[1765010250002,8.32,132.37,132.35,0.68]
[1765010250202,8.32,132.37,132.35,56.08]
[1765010250719,8.32,132.37,132.36,0.68]
[1765010251986,12.35963251,132.38,132.36,0.68]
[1765010252187,20.67963251,132.38,132.36,0.68]
[1765010254123,15.87455195,132.38,132.36,0.68]
[1765010257121,7.65249787,132.41,132.37,13.61502548]
[1765010257327,15.97249787,132.41,132.37,13.61502548]
[1765010257623,15.97249787,132.41,132.38,0.68]
[1765010258136,7.65249787,132.41,132.38,0.68]
[1765010258347,15.97249787,132.41,132.38,0.68]
[1765010258619,15.97249787,132.41,132.38,5.48508056]
[1765010258829,15.97249787,132.41,132.38,0.68]
[1765010258993,15.97249787,132.41,132.38,5.48508056]
[1765010259194,15.97249787,132.41,132.39,0.67]
[1765010259404,0.1,132.41,132.39,5.47508056]
[1765010259821,0.1,132.41,132.4,0.67]
[1765010262014,0.1,132.41,132.4,9.47994492]
[1765010262924,0.1,132.41,132.4,14.28502548]
[1765010264424,0.1,132.41,132.4,9.47994492]
[1765010265230,0.1,132.41,132.4,14.28502548]
[1765010266002,0.1,132.41,132.4,9.47994492]
[1765010266207,0.1,132.41,132.4,64.87994492]
[1765010267119,0.1,132.41,132.4,69.68502548]
[1765010267938,0.1,132.41,132.4,64.87994492]
[1765010268754,0.1,132.41,132.4,77.23789557]
[1765010270435,0.1,132.41,132.4,75.49926903]
[1765010271647,0.1,132.41,132.4,91.80813303]
[1765010272327,0.1,132.43,132.4,94.38144425]
[1765010272643,0.1,132.43,132.42,28.18526294]
[1765010272838,0.1,132.43,132.42,84.23526294]
[1765010273323,0.1,132.43,132.42,81.16880892]
[1765010273524,0.1,132.43,132.42,91.78699228]
[1765010273939,0.1,132.43,132.42,75.47812828]
[1765010275714,0.1,132.43,132.42,72.41167426]
[1765010275921,0.1,132.43,132.42,75.47812828]
[1765010276331,0.1,132.43,132.42,75.97812828]
[1765010276540,0.1,132.43,132.42,72.91167426]
[1765010276716,0.1,132.43,132.42,92.28699228]
[1765010277039,0.1,132.43,132.42,84.73526294]
[1765010277541,0.68,132.43,132.42,25.61880892]
[1765010277857,3.74645402,132.43,132.4,55.4]
[1765010278066,3.06645402,132.42,132.4,16.308864]
[1765010278230,3.64645402,132.42,132.4,16.308864]
[1765010278848,7.65120304,132.43,132.37,8.20455131]
[1765010278849,3.64645402,132.41,132.37,8.20455131]
[1765010279030,3.06645402,132.4,132.38,25.11880892]
[1765010279226,0.58,132.41,132.38,25.11880892]
[1765010280038,0.58,132.41,132.38,32.67273108]
[1765010280451,0.58,132.41,132.38,25.11880892]
[1765010281031,0.58,132.41,132.38,25.76880892]
[1765010281541,0.58,132.41,132.38,25.11880892]
[1765010282145,0.58,132.41,132.38,25.76880892]
[1765010282339,0.68,132.43,132.39,8.20344059]
[1765010282541,3.06645402,132.42,132.39,8.20344059]
[1765010282748,3.74645402,132.43,132.4,0.65]
[1765010282952,0.1,132.43,132.41,8.80994492]
[1765010283348,0.1,132.43,132.41,9.45994492]
[1765010284132,3.16645402,132.43,132.41,9.45994492]
[1765010284656,0.1,132.43,132.42,8.80994492]
[1765010284958,3.16645402,132.43,132.39,10.61984396]
[1765010285134,3.64645402,132.42,132.39,8.80994492]
[1765010285326,3.64645402,132.42,132.39,9.45994492]
[1765010286857,3.64645402,132.42,132.39,64.85994492]
[1765010287944,0.58,132.42,132.39,64.85994492]
[1765010288146,3.64645402,132.42,132.39,64.85994492]
[1765010288557,0.58,132.42,132.39,64.85994492]
[1765010288790,0.58,132.42,132.39,75.47969778]
[1765010289455,0.58,132.42,132.39,72.41324376]
[1765010289754,3.16645402,132.43,132.39,71.76324376]
[1765010289959,0.1,132.43,132.41,8.80994492]
[1765010290458,0.1,132.43,132.41,9.50994492]
[1765010291339,3.74645402,132.43,132.4,8.80994492]
[1765010291734,3.64645402,132.42,132.41,0.5]
[1765010292660,3.64645402,132.42,132.39,0.7]
[1765010293551,3.06645402,132.42,132.39,9.50994492]
[1765010293765,3.64645402,132.42,132.39,9.50994492]
[1765010294768,11.19826916,132.42,132.39,9.50994492]
[1765010295365,3.06645402,132.42,132.4,0.7]
[1765010295551,3.06645402,132.42,132.39,9.50994492]
[1765010295749,3.64645402,132.42,132.39,64.90994492]
[1765010296478,3.06645402,132.42,132.39,64.90994492]
[1765010296761,3.06645402,132.42,132.4,0.7]
[1765010296955,3.06645402,132.42,132.39,64.90994492]
[1765010297559,3.64645402,132.42,132.39,64.90994492]
[1765010298771,3.06645402,132.42,132.4,0.7]
[1765010299456,7.65127807,132.43,132.4,0.7]
[1765010299652,0.68,132.43,132.4,0.7]
[1765010299860,3.06645402,132.42,132.4,0.7]
[1765010302671,10.61823439,132.42,132.4,0.7]
[1765010302974,11.19823439,132.42,132.39,64.90994492]
[1765010304070,3.06645402,132.42,132.4,0.7]
[1765010304372,3.06645402,132.42,132.39,64.20994492]
[1765010304564,3.06645402,132.42,132.39,64.90994492]
[1765010306563,3.06645402,132.42,132.4,0.7]
[1765010308477,11.29774782,132.43,132.4,0.7]
[1765010309756,0.1,132.43,132.41,8.80994492]
[1765010309949,0.1,132.43,132.41,67.27639894]
[1765010310176,0.1,132.43,132.42,12.57639894]
[1765010312278,0.1,132.43,132.42,20.12812828]
[1765010313667,0.1,132.43,132.42,83.84812828]
[1765010314074,0.1,132.43,132.42,86.87053184]
[1765010316056,0.1,132.43,132.42,87.37053184]
[1765010319683,0.1,132.43,132.42,189.77053184]
[1765010321886,0.1,132.43,132.42,189.27053184]
[1765010324283,0.1,132.43,132.42,186.24812828]
[1765010325483,0.1,132.43,132.42,83.84812828]
[1765010326577,0.1,132.43,132.42,86.87053184]
[1765010328475,0.1,132.43,132.42,83.84812828]
[1765010330888,0.1,132.43,132.41,3.02240356]
[1765010330889,3.74645402,132.43,132.41,3.02240356]
[1765010331185,3.06645402,132.42,132.38,55.4]
[1765010331357,3.06645402,132.41,132.36,11.30148187]
[1765010331563,3.06645402,132.4,132.36,23.86389185]
[1765010331867,3.06645402,132.38,132.33,12.04645402]
[1765010332069,0.58,132.39,132.31,18.89501927]
[1765010332378,4.79724511,132.38,132.33,4.79724511]
[1765010332768,0.58,132.37,132.33,13.0335522]
[1765010333086,0.58,132.37,132.34,4.79724511]
[1765010333387,5.37724511,132.39,132.35,13.60719003]
[1765010333684,0.58,132.38,132.35,14.28719003]
[1765010334386,0.58,132.38,132.35,21.16287098]
[1765010335400,0.58,132.38,132.35,21.84287098]
[1765010335895,0.58,132.4,132.36,4.79724511]
[1765010336068,0.58,132.39,132.35,21.84287098]
[1765010338089,0.58,132.39,132.35,17.04562587]
[1765010338294,0.58,132.41,132.37,8.80994492]
[1765010338493,5.37724511,132.41,132.37,8.80994492]